[Event "1000IM Saint Louis 2022"]
[Site "Saint Louis"]
[Date "2022.07.23"]
[Round "9.4"]
[White "Kozelov, Roman"]
[Black "Sethuraman, Sandeep"]
[Result "1/2-1/2"]
[ECO "D04"]
[WhiteElo "2104"]
[BlackElo "2305"]
[Annotator "TA"]
[PlyCount "78"]
[EventDate "2022.07.20"]
[EventType "tourn"]
[EventCountry "USA"]
[SourceTitle "playchess.com"]
[Source "ChessBase"]
[SourceQuality "1"]
[TimeControl "5400+30"]

{[%evp 9,78,14,12,12,17,6,25,12,17,-21,-24,-18,-12,-16,-18,-15,0,0,0,3,11,0,0,0,7,0,37,0,0,-6,-7,-7,-2,-4,-2,-16,-19,-89,-82,-129,-25,-138,-32,-45,-37,-37,-39,-24,0,0,0,-12,-3,-18,0,-28,-35,-39,-19,-43,-35,-18,-3,-24,-27,-54,0,0,0,0,0]} 1. d4 {[%emt 0:03:20]} Nf6 {[%emt 0:00:25]} 2. Nf3 {[%emt 0:00:04]} d5 {[%emt 0:01:32]} 3. e3 {[%emt 0:00:05]} Bf5 {[%emt 0:00:49]} 4. Bd3 {[%emt 0:00:05]} Bxd3 {[%emt 0:00:05]} 5. Qxd3 {[%emt 0:00:04]} Nbd7 {[%emt 0:06:07]} 6. b3 {[%emt 0:00:25] D04: Colle System.} e6 {[%emt 0:02:35]} 7. Nbd2 {[%emt 0:01:29]} c6 {[%emt 0:11:18]} 8. Bb2 {[%emt 0:00:17] White has an edge.} Be7 {[%emt 0:03:21] [#]} 9. g4 $146 {[%emt 0:02:49]} ({Predecessor:} 9. Ne5 Nxe5 10. dxe5 Nd7 11. O-O O-O 12. f4 Nc5 13. Qe2 f5 14. g4 Ne4 15. Nxe4 dxe4 16. Rad1 Qc7 17. Qc4 fxg4 18. Qxe6+ Kh8 19. Rd7 {1-0 (19) Cherny,A (2188)-Dehn,M (2098) Playchess.com INT 2020}) 9... Nxg4 {[%emt 0:08:14]} 10. Rg1 $1 {[%emt 0:00:29]} f5 {[%emt 0:00:34]} 11. h3 {[%emt 0:00:27]} Ngf6 {[%emt 0:02:25]} 12. Rxg7 {[%emt 0:00:39]} Bf8 {[%emt 0:04:31]} 13. Rg2 {[%emt 0:02:30]} Ne4 {[%emt 0:00:44]} 14. O-O-O {[%emt 0:01:09]} Qa5 {[%emt 0:06:43]} 15. Qe2 {[%emt 0:20:34] Hoping for Nxe4.} Nxd2 {[%emt 0:09:08]} 16. Nxd2 {[%emt 0:01:12] [#] And now Qh5+ would win.} O-O-O {[%emt 0:02:01]} 17. Kb1 {[%emt 0:01:05]} Nf6 {[%emt 0:00:33]} 18. f3 {[%emt 0:02:07]} Bb4 {[%emt 0:03:48]} 19. Nf1 {[%emt 0:10:14]} Rhg8 {[%emt 0:04:56]} 20. Ng3 {[%emt 0:01:27]} Bd6 {[%emt 0:01:13]} 21. Rdg1 {[%emt 0:01:50]} Qc7 {[%emt 0:01:23][%cal Rg8g3]} 22. Nh1 {[%emt 0:05:31]} Qf7 {[%emt 0:01:27]} 23. c4 {[%emt 0:06:39]} (23. Bc1 $11 {keeps the balance.}) 23... Rxg2 {[%emt 0:03:09]} 24. Qxg2 {[%emt 0:01:20]} (24. Rxg2 $142 Rg8 25. Bc3) 24... Qh5 {[%emt 0:03:42]} (24... f4 $17 {aiming for ...Rg8.} 25. c5 Rg8) 25. Qf1 {[%emt 0:01:44]} (25. c5 $1 $11 Bc7 26. f4) 25... Rg8 {[%emt 0:07:50]} (25... f4 $17 26. c5 Bc7 27. exf4 Bxf4) 26. Rxg8+ $15 {[%emt 0:04:11]} Nxg8 {[%emt 0:00:02]} 27. Qg2 {[%emt 0:00:09]} Nf6 {[%emt 0:01:10]} 28. Nf2 $1 {[%emt 0:01:35]} Qg6 {[%emt 0:07:31]} 29. Qxg6 {[%emt 0:00:52]} hxg6 $11 {[%emt 0:00:01][%mdl 4096] Endgame KBN-KBN} 30. Kc2 {[%emt 0:00:41]} Kd7 {[%emt 0:00:39]} 31. Kd3 {[%emt 0:00:15]} Bg3 {[%emt 0:00:55]} 32. Nd1 {[%emt 0:05:10]} Nh7 {[%emt 0:02:55]} 33. Ke2 {[%emt 0:00:05]} Ng5 {[%emt 0:00:27]} 34. Kf1 {[%emt 0:00:05]} Bh4 {[%emt 0:02:21]} (34... Nxf3 $2 35. Kg2 $16) 35. Kg2 {[%emt 0:00:27]} Nf7 {[%emt 0:00:12]} 36. cxd5 {[%emt 0:06:10]} exd5 {[%emt 0:00:19]} 37. Bc3 {[%emt 0:00:01]} Be7 {[%emt 0:01:26]} (37... f4 $15) 38. Nf2 {[%emt 0:00:40]} Bd6 {[%emt 0:01:00]} 39. Nd3 {[%emt 0:00:21]} b6 {[%emt 0:00:43] Weighted Error Value: White=0.18 (very precise) /Black=0.18 (very precise)} 1/2-1/2

[Event "1000IM Saint Louis 2022"]
[Site "Saint Louis"]
[Date "2022.07.23"]
[Round "9.5"]
[White "Wang, Tianqi"]
[Black "Tokhirjonova, Gulrukhbegim"]
[Result "1/2-1/2"]
[ECO "C68"]
[WhiteElo "2402"]
[BlackElo "2329"]
[Annotator "TA"]
[PlyCount "117"]
[EventDate "2022.07.20"]
[EventType "tourn"]
[EventCountry "USA"]
[SourceTitle "playchess.com"]
[Source "ChessBase"]
[SourceQuality "1"]
[TimeControl "5400+30"]

{[%evp 9,117,0,31,33,23,22,31,33,37,38,23,26,63,56,107,64,81,67,70,66,66,81,73,81,66,75,80,53,50,43,40,44,47,0,50,23,28,22,50,58,40,37,33,39,44,45,39,37,47,39,70,27,36,27,124,121,116,122,122,121,160,167,235,231,218,221,238,254,233,247,254,254,198,80,74,0,49,49,49,49,216,219,208,208,205,104,183,87,87,0,0,0,0,0,0,0,0,0,0,0,0,0,0,0,0,0,0,0,8,8]} 1. e4 {[%emt 0:00:05]} e5 {[%emt 0:05:53]} 2. Nf3 {[%emt 0:00:08]} Nc6 {[%emt 0:00:07]} 3. Bb5 {[%emt 0:00:06]} a6 {[%emt 0:00:13]} 4. Bxc6 {[%emt 0:00:05]} dxc6 {[%emt 0:00:06]} 5. O-O {[%emt 0:00:07]} Qf6 {[%emt 0:04:48]} 6. d4 {[%emt 0:00:15] C68: Ruy Lopez: Exchange Variation, sidelines.} exd4 {[%emt 0:02:24]} 7. Bg5 {[%emt 0:00:07]} Qd6 {[%emt 0:03:02]} 8. Nxd4 {[%emt 0:00:10] White is slightly better.} c5 {[%emt 0:00:54]} 9. Nb3 {[%emt 0:00:54]} (9. Nf5 Bxf5 10. exf5 Qxd1 11. Rxd1 Bd6 $11) 9... Qxd1 {[%emt 0:01:43]} 10. Rxd1 {[%emt 0:05:54][%csl Gg5][%cal Rd1d8]} Bd7 {[%emt 0:01:18]} 11. Nc3 {[%emt 0:00:41]} f6 {[%emt 0:03:03]} (11... Be6 $14) 12. Bf4 {[%emt 0:01:42]} O-O-O $1 {[%emt 0:02:54]} 13. Nd5 $1 {[%emt 0:05:36]} Bd6 {[%emt 0:00:28] [#]} 14. Bxd6 $146 {[%emt 0:00:16]} ({Predecessor:} 14. Nb6+ cxb6 15. Rxd6 Bc6 16. Rxd8+ Kxd8 17. Rd1+ Kc8 18. e5 fxe5 19. Bxe5 Nf6 20. c4 {0-1 (40) Valencak,S (2065)-Klauser,M (2388) Zuerich 2006}) 14... cxd6 {[%emt 0:00:02]} 15. Rd2 {[%emt 0:00:02]} Bc6 {[%emt 0:03:38]} 16. Rad1 {[%emt 0:01:35] 0x0.001ebf5c08ccdp-1022s more active pieces.} Nh6 {[%emt 0:00:26]} 17. Na5 {[%emt 0:07:12] Pair of Knights!} Rhe8 {[%emt 0:00:31]} 18. Nxc6 {[%emt 0:05:35]} bxc6 {[%emt 0:00:10]} 19. Nc3 {[%emt 0:00:02]} Kc7 {[%emt 0:00:18]} 20. f3 {[%emt 0:00:08]} f5 {[%emt 0:01:22]} 21. Kf2 {[%emt 0:01:37]} (21. h3 $14) 21... Rf8 {[%emt 0:04:11]} (21... fxe4 $11 22. Nxe4 Ng4+ 23. Kg1 Ne3) 22. exf5 {[%emt 0:04:34]} Nxf5 {[%emt 0:02:55]} 23. Ne4 {[%emt 0:00:13]} h6 {[%emt 0:00:51]} 24. b3 {[%emt 0:01:14]} a5 {[%emt 0:01:33]} 25. Rd3 {[%emt 0:00:45]} h5 {[%emt 0:04:53]} 26. R1d2 {[%emt 0:01:14]} Rfe8 {[%emt 0:00:41]} 27. c3 {[%emt 0:00:59]} a4 {[%emt 0:01:18]} 28. g3 {[%emt 0:02:50]} ({Don't go for} 28. bxa4 $2 c4 29. Rd4 Nxd4 30. cxd4 Ra8 $19) 28... axb3 {[%emt 0:08:18]} 29. axb3 {[%emt 0:00:33]} Rf8 {[%emt 0:02:34]} 30. Kg2 {[%emt 0:00:32]} Rfe8 {[%emt 0:05:02]} 31. h3 {[%emt 0:01:30]} c4 {[%emt 0:12:58]} (31... Re7 $11 {keeps the balance.}) 32. bxc4 $16 {[%emt 0:00:25]} d5 {[%emt 0:00:28]} 33. cxd5 {[%emt 0:00:07]} cxd5 {[%emt 0:00:14]} 34. Ng5 {[%emt 0:08:42]} Kc6 {[%emt 0:02:11]} 35. Kf2 $1 {[%emt 0:00:16] Against Ne3} h4 {[%emt 0:02:00]} (35... Rd6 $142 36. g4 hxg4) 36. g4 $1 $18 {[%emt 0:04:00]} Ng3 {[%emt 0:00:47]} 37. f4 $1 {[%emt 0:00:35]} Ne4+ {[%emt 0:02:51]} 38. Nxe4 {[%emt 0:00:27]} Rxe4 {[%emt 0:00:02]} 39. Rd4 {[%emt 0:01:33]} Rxd4 {[%emt 0:01:53]} 40. cxd4 {[%emt 0:03:56][%mdl 4096] Endgame KR-KR} ({Weaker is} 40. Rxd4 Rb8 $16) 40... Ra8 {[%emt 0:02:27]} 41. Ke3 {[%emt 0:00:10]} (41. Re2 $18 {and White stays clearly on top.}) 41... Ra1 $16 {[%emt 0:00:30]} 42. Rd3 {[%emt 0:14:02]} (42. f5 $16) 42... Rh1 {[%emt 0:00:16]} (42... Kb5 $11 {deserves consideration.}) 43. Kf2 $1 $14 {[%emt 0:00:23] Threatens to win with f5.} Kd6 {[%emt 0:07:14]} 44. f5 {[%emt 0:00:08] Strongly threatening Re3.} Rh2+ $2 {[%emt 0:01:42]} (44... Ke7 $1 $14) 45. Kg1 $1 $18 {[%emt 0:01:38]} Re2 {[%emt 0:00:07]} 46. Kf1 $1 {[%emt 0:00:07]} Rh2 {[%emt 0:00:19]} 47. Re3 {[%emt 0:01:34] Hoping for g5.} Kd7 {[%emt 0:01:28] [#]} 48. g5 {[%emt 0:05:45]} (48. Ke1 $1 $18 {has better winning chances.}) 48... Rd2 $16 {[%emt 0:01:10] [#]} 49. f6 {[%emt 0:01:18]} ({Better is} 49. Re5 $1 $16 {[%cal Re5d5]}) 49... gxf6 $11 {[%emt 0:00:45] The position is equal.} 50. g6 {[%emt 0:01:59] White wants to mate with g7.} Ra2 {[%emt 0:00:11]} 51. Rf3 {[%emt 0:03:21]} Ke6 {[%emt 0:00:09]} 52. Rf4 {[%emt 0:06:56]} f5 {[%emt 0:00:15]} 53. g7 {[%emt 0:00:35]} Kf7 {[%emt 0:00:53]} 54. Rxf5+ {[%emt 0:00:23]} Kxg7 {[%emt 0:00:01]} 55. Rxd5 {[%emt 0:00:07]} Rh2 {[%emt 0:00:55]} 56. Rg5+ {[%emt 0:01:15]} Kf6 {[%emt 0:00:06]} 57. Rg4 {[%emt 0:00:03]} Rxh3 {[%emt 0:00:07]} 58. Kg2 {[%emt 0:00:02]} Rg3+ {[%emt 0:00:17]} 59. Rxg3 {[%emt 0:00:08] Weighted Error Value: White=0.10 (very precise) /Black=0.18 (very precise)} 1/2-1/2